[Event "Elite Hotels Open 2024"]
[Site "Elite Stadshotellet, Kungsgatan 6, Vaxjo, Sweden"]
[Date "2024.02.09"]
[Round "2.8"]
[White "Eriksson, Wilmer"]
[Black "Akesson, Ralf"]
[Result "0-1"]
[TimeControl "15 minutes + 5 seconds per move from move one (Round 1 - 4) / 90 minutes + 30 seconds per move from move one (Round 5 - 8)"]
[BlackTitle "GM"]
[WhiteFideId "1768298"]
[BlackFideId "1700120"]
[WhiteElo "1976"]
[BlackElo "2378"]

1. e4 {[%clk 00:15:06]} {[%emt 00:00:02]} c5 {[%clk 00:15:05]} {[%emt
00:00:06]} 2. c3 {[%clk 00:15:09]} {[%emt 00:00:03]} d5 {[%clk 00:15:06]}
{[%emt 00:00:04]} 3. exd5 {[%clk 00:15:12]} {[%emt 00:00:02]} Qxd5 {[%clk
00:15:09]} {[%emt 00:00:02]} 4. d4 {[%clk 00:15:16]} {[%emt 00:00:02]} Nf6
{[%clk 00:15:11]} {[%emt 00:00:02]} 5. Nf3 {[%clk 00:15:19]} {[%emt 00:00:02]}
Bg4 {[%clk 00:15:12]} {[%emt 00:00:03]} 6. Nbd2 {[%clk 00:14:53]} {[%emt
00:00:32]} Nc6 {[%clk 00:11:18]} {[%emt 00:04:00]} 7. Bc4 {[%clk 00:14:01]}
{[%emt 00:00:56]} Qd6 {[%clk 00:05:59]} {[%emt 00:05:24]} 8. dxc5 {[%clk
00:10:57]} {[%emt 00:03:09]} Qxc5 {[%clk 00:05:46]} {[%emt 00:00:19]} 9. Qe2
{[%clk 00:09:29]} {[%emt 00:01:33]} e6 {[%clk 00:05:33]} {[%emt 00:00:17]} 10.
O-O {[%clk 00:09:27]} {[%emt 00:00:08]} Be7 {[%clk 00:05:28]} {[%emt 00:00:10]}
11. h3 {[%clk 00:07:46]} {[%emt 00:01:46]} Bh5 {[%clk 00:05:31]} {[%emt
00:00:02]} 12. Bd3 {[%clk 00:06:42]} {[%emt 00:01:09]} O-O {[%clk 00:05:19]}
{[%emt 00:00:16]} 13. Ne4 {[%clk 00:05:13]} {[%emt 00:01:35]} Nxe4 {[%clk
00:05:21]} {[%emt 00:00:03]} 14. Bxe4 {[%clk 00:05:15]} {[%emt 00:00:02]} Rfd8
{[%clk 00:05:01]} {[%emt 00:00:25]} 15. Be3 {[%clk 00:05:13]} {[%emt 00:00:07]}
Qa5 {[%clk 00:05:04]} {[%emt 00:00:02]} 16. Qc2 {[%clk 00:04:55]} {[%emt
00:00:23]} Bg6 {[%clk 00:05:04]} {[%emt 00:00:05]} 17. Bxg6 {[%clk 00:04:56]}
{[%emt 00:00:04]} hxg6 {[%clk 00:05:07]} {[%emt 00:00:02]} 18. Qb3 {[%clk
00:04:31]} {[%emt 00:00:30]} Qc7 {[%clk 00:05:03]} {[%emt 00:00:09]} 19. Nd4
{[%clk 00:04:08]} {[%emt 00:00:28]} Na5 {[%clk 00:04:59]} {[%emt 00:00:08]} 20.
Qc2 {[%clk 00:01:41]} {[%emt 00:02:33]} Nc4 {[%clk 00:04:59]} {[%emt 00:00:04]}
21. b3 {[%clk 00:01:40]} {[%emt 00:00:07]} Nxe3 {[%clk 00:04:41]} {[%emt
00:00:23]} 22. fxe3 {[%clk 00:01:44]} {[%emt 00:00:01]} Bf6 {[%clk 00:04:43]}
{[%emt 00:00:02]} 23. Rac1 {[%clk 00:01:44]} {[%emt 00:00:06]} Rac8 {[%clk
00:04:39]} {[%emt 00:00:08]} 24. Rfd1 {[%clk 00:01:21]} {[%emt 00:00:28]} Qe5
{[%clk 00:04:18]} {[%emt 00:00:26]} 25. Qf2 {[%clk 00:01:20]} {[%emt 00:00:06]}
a6 {[%clk 00:04:04]} {[%emt 00:00:20]} 26. c4 {[%clk 00:00:24]} {[%emt
00:01:01]} Qe4 {[%clk 00:03:09]} {[%emt 00:00:59]} 27. Nf3 {[%clk 00:00:19]}
{[%emt 00:00:10]} Rxd1+ {[%clk 00:02:56]} {[%emt 00:00:18]} 28. Rxd1 {[%clk
00:00:23]} b5 {[%clk 00:02:59]} {[%emt 00:00:03]} 29. cxb5 {[%clk 00:00:21]}
{[%emt 00:00:08]} axb5 {[%clk 00:03:02]} 30. Nd4 {[%clk 00:00:13]} {[%emt
00:00:13]} b4 {[%clk 00:02:50]} {[%emt 00:00:16]} 31. Qf3 {[%clk 00:00:07]}
{[%emt 00:00:12]} Qxf3 {[%clk 00:02:35]} {[%emt 00:00:19]} 32. gxf3 {[%clk
00:00:09]} {[%emt 00:00:03]} e5 {[%clk 00:02:36]} {[%emt 00:00:04]} 33. Nb5
{[%clk 00:00:09]} {[%emt 00:00:06]} Rc2 {[%clk 00:02:39]} {[%emt 00:00:02]} 34.
e4 {[%clk 00:00:06]} {[%emt 00:00:08]} Rxa2 {[%clk 00:02:40]} {[%emt 00:00:04]}
35. Nd6 {[%clk 00:00:09]} {[%emt 00:00:01]} Bh4 {[%clk 00:02:19]} {[%emt
00:00:25]} 36. Rd3 {[%clk 00:00:13]} {[%emt 00:00:02]} Bf2+ {[%clk 00:02:20]}
{[%emt 00:00:04]} 37. Kf1 {[%clk 00:00:15]} {[%emt 00:00:03]} Bc5 {[%clk
00:02:14]} {[%emt 00:00:12]} 38. Nc4 {[%clk 00:00:12]} {[%emt 00:00:08]} f6
{[%clk 00:02:07]} {[%emt 00:00:11]} 39. Nd2 {[%clk 00:00:10]} {[%emt 00:00:08]}
Bd4 {[%clk 00:02:02]} {[%emt 00:00:09]} 40. Ke2 {[%clk 00:00:08]} {[%emt
00:00:07]} Kh7 {[%clk 00:02:02]} {[%emt 00:00:06]} 41. f4 {[%clk 00:00:07]}
{[%emt 00:00:06]} Bc3 {[%clk 00:02:02]} {[%emt 00:00:05]} 42. fxe5 {[%clk
00:00:10]} {[%emt 00:00:02]} Bxe5 {[%clk 00:02:04]} {[%emt 00:00:02]} 43. Ke3
{[%clk 00:00:11]} {[%emt 00:00:05]} g5 {[%clk 00:02:04]} {[%emt 00:00:04]} 44.
Nc4 {[%clk 00:00:14]} {[%emt 00:00:03]} Bf4+ {[%clk 00:02:00]} {[%emt
00:00:08]} 45. Kf3 {[%clk 00:00:17]} {[%emt 00:00:02]} Kg6 {[%clk 00:02:03]}
{[%emt 00:00:02]} 46. Nd6 {[%clk 00:00:12]} {[%emt 00:00:10]} Rh2 {[%clk
00:01:49]} {[%emt 00:00:19]} 47. Kg4 {[%clk 00:00:10]} {[%emt 00:00:07]} Rg2+
{[%clk 00:01:52]} {[%emt 00:00:02]} 48. Kf3 {[%clk 00:00:15]} Rg3+ {[%clk
00:01:56]} {[%emt 00:00:01]} 49. Ke2 {[%clk 00:00:19]} {[%emt 00:00:01]} Rxd3
{[%clk 00:01:59]} 0-1

[Event "Elite Hotels Open 2024"]
[Site "Elite Stadshotellet, Kungsgatan 6, Vaxjo, Sweden"]
[Date "2024.02.09"]
[Round "2.9"]
[White "Nilsson, Oliver"]
[Black "Olsson, William"]
[Result "1-0"]
[TimeControl "15 minutes + 5 seconds per move from move one (Round 1 - 4) / 90 minutes + 30 seconds per move from move one (Round 5 - 8)"]
[BlackTitle "FM"]
[WhiteFideId "1730177"]
[BlackFideId "1741721"]
[WhiteElo "1973"]
[BlackElo "2373"]

1. e4 {[%clk 00:15:08]} {[%emt 00:00:02]} c5 {[%clk 00:15:08]} {[%emt
00:00:03]} 2. Nc3 {[%clk 00:15:11]} {[%emt 00:00:01]} Nc6 {[%clk 00:15:11]}
{[%emt 00:00:02]} 3. Bb5 {[%clk 00:15:15]} Nd4 {[%clk 00:15:15]} {[%emt
00:00:01]} 4. Nf3 {[%clk 00:15:20]} {[%emt 00:00:01]} g6 {[%clk 00:15:18]}
{[%emt 00:00:02]} 5. Bc4 {[%clk 00:15:21]} {[%emt 00:00:04]} Bg7 {[%clk
00:15:18]} {[%emt 00:00:04]} 6. Nxd4 {[%clk 00:15:24]} {[%emt 00:00:02]} cxd4
{[%clk 00:15:22]} {[%emt 00:00:02]} 7. Qf3 {[%clk 00:15:28]} {[%emt 00:00:01]}
e6 {[%clk 00:14:17]} {[%emt 00:01:09]} 8. Nb5 {[%clk 00:15:29]} {[%emt
00:00:04]} d6 {[%clk 00:14:09]} {[%emt 00:00:13]} 9. Qa3 {[%clk 00:15:33]}
{[%emt 00:00:01]} Bf8 {[%clk 00:13:47]} {[%emt 00:00:27]} 10. Nxd4 {[%clk
00:15:36]} {[%emt 00:00:03]} Nf6 {[%clk 00:13:49]} {[%emt 00:00:02]} 11. d3
{[%clk 00:14:42]} {[%emt 00:00:59]} d5 {[%clk 00:13:08]} {[%emt 00:00:47]} 12.
Bb5+ {[%clk 00:14:46]} {[%emt 00:00:01]} Bd7 {[%clk 00:13:12]} {[%emt
00:00:01]} 13. Qa4 {[%clk 00:12:18]} {[%emt 00:02:32]} dxe4 {[%clk 00:12:37]}
{[%emt 00:00:39]} 14. Bg5 {[%clk 00:12:03]} {[%emt 00:00:20]} Be7 {[%clk
00:12:29]} {[%emt 00:00:14]} 15. Rd1 {[%clk 00:07:12]} {[%emt 00:04:57]} exd3
{[%clk 00:11:43]} {[%emt 00:00:51]} 16. Rxd3 {[%clk 00:07:08]} {[%emt
00:00:09]} Nd5 {[%clk 00:11:47]} 17. Bxe7 {[%clk 00:06:42]} {[%emt 00:00:32]}
Qxe7 {[%clk 00:11:49]} {[%emt 00:00:02]} 18. O-O {[%clk 00:03:47]} {[%emt
00:03:01]} Rd8 {[%clk 00:11:12]} {[%emt 00:00:42]} 19. Rfd1 {[%clk 00:02:44]}
{[%emt 00:01:08]} O-O {[%clk 00:10:32]} {[%emt 00:00:46]} 20. Bxd7 {[%clk
00:02:06]} {[%emt 00:00:43]} Rxd7 {[%clk 00:10:35]} {[%emt 00:00:01]} 21. c4
{[%clk 00:01:52]} {[%emt 00:00:19]} Nb6 {[%clk 00:09:21]} {[%emt 00:01:20]} 22.
Qb5 {[%clk 00:00:43]} {[%emt 00:01:14]} Rfd8 {[%clk 00:09:03]} {[%emt
00:00:23]} 23. c5 {[%clk 00:00:26]} {[%emt 00:00:21]} Rd5 {[%clk 00:08:30]}
{[%emt 00:00:38]} 24. Nb3 {[%clk 00:00:14]} {[%emt 00:00:18]} a6 {[%clk
00:07:08]} {[%emt 00:01:27]} 25. Rxd5 {[%clk 00:00:08]} {[%emt 00:00:11]} Nxd5
{[%clk 00:07:12]} 26. Qc4 {[%clk 00:00:08]} {[%emt 00:00:05]} Rc8 {[%clk
00:07:04]} {[%emt 00:00:13]} 27. h3 {[%clk 00:00:09]} {[%emt 00:00:04]} Qf6
{[%clk 00:07:00]} {[%emt 00:00:09]} 28. Qd4 {[%clk 00:00:09]} {[%emt 00:00:05]}
Qg5 {[%clk 00:06:36]} {[%emt 00:00:29]} 29. g3 {[%clk 00:00:06]} {[%emt
00:00:08]} Qe7 {[%clk 00:06:03]} {[%emt 00:00:37]} 30. Qe5 {[%clk 00:00:07]}
{[%emt 00:00:04]} h5 {[%clk 00:05:52]} {[%emt 00:00:16]} 31. Rxd5 {[%clk
00:00:09]} {[%emt 00:00:04]} a5 {[%clk 00:05:38]} {[%emt 00:00:18]} 32. Rd6
{[%clk 00:00:11]} {[%emt 00:00:04]} a4 {[%clk 00:05:38]} {[%emt 00:00:05]} 33.
Nd4 {[%clk 00:00:11]} {[%emt 00:00:04]} Qc7 {[%clk 00:05:36]} {[%emt 00:00:07]}
34. Nxe6 {[%clk 00:00:09]} {[%emt 00:00:07]} fxe6 {[%clk 00:05:28]} {[%emt
00:00:14]} 35. Qxe6+ {[%clk 00:00:12]} Kh8 {[%clk 00:05:31]} {[%emt 00:00:02]}
36. Rd7 {[%clk 00:00:10]} {[%emt 00:00:08]} 1-0

[Event "Elite Hotels Open 2024"]
[Site "Elite Stadshotellet, Kungsgatan 6, Vaxjo, Sweden"]
[Date "2024.02.09"]
[Round "2.10"]
[White "Lindberg, Bengt"]
[Black "Frisk, Hans"]
[Result "1-0"]
[TimeControl "15 minutes + 5 seconds per move from move one (Round 1 - 4) / 90 minutes + 30 seconds per move from move one (Round 5 - 8)"]
[WhiteTitle "IM"]
[WhiteFideId "1700359"]
[BlackFideId "1708570"]
[WhiteElo "2331"]
[BlackElo "1973"]

1. e4 {[%clk 00:15:07]} {[%emt 00:00:02]} c5 {[%clk 00:15:09]} {[%emt
00:00:02]} 2. Nf3 {[%clk 00:15:10]} {[%emt 00:00:02]} Nc6 {[%clk 00:15:12]}
{[%emt 00:00:02]} 3. d4 {[%clk 00:15:10]} {[%emt 00:00:05]} cxd4 {[%clk
00:15:15]} {[%emt 00:00:02]} 4. Nxd4 {[%clk 00:15:12]} {[%emt 00:00:03]} Nf6
{[%clk 00:15:16]} {[%emt 00:00:03]} 5. Nc3 {[%clk 00:15:14]} {[%emt 00:00:03]}
e6 {[%clk 00:15:06]} {[%emt 00:00:15]} 6. Ndb5 {[%clk 00:15:11]} {[%emt
00:00:08]} Bb4 {[%clk 00:14:53]} {[%emt 00:00:18]} 7. a3 {[%clk 00:15:13]}
{[%emt 00:00:03]} Bxc3+ {[%clk 00:14:54]} {[%emt 00:00:04]} 8. Nxc3 {[%clk
00:15:14]} {[%emt 00:00:03]} d5 {[%clk 00:14:44]} {[%emt 00:00:15]} 9. exd5
{[%clk 00:15:15]} {[%emt 00:00:05]} exd5 {[%clk 00:14:42]} {[%emt 00:00:07]} 10.
Bd3 {[%clk 00:15:15]} {[%emt 00:00:04]} O-O {[%clk 00:14:21]} {[%emt 00:00:26]}
11. O-O {[%clk 00:15:14]} {[%emt 00:00:05]} d4 {[%clk 00:14:00]} {[%emt
00:00:27]} 12. Ne2 {[%clk 00:15:14]} {[%emt 00:00:05]} Bg4 {[%clk 00:13:28]}
{[%emt 00:00:37]} 13. f3 {[%clk 00:15:00]} {[%emt 00:00:18]} Bh5 {[%clk
00:13:05]} {[%emt 00:00:28]} 14. Bg5 {[%clk 00:13:28]} {[%emt 00:01:38]} Qd6
{[%clk 00:10:13]} {[%emt 00:02:56]} 15. Qd2 {[%clk 00:13:08]} {[%emt 00:00:25]}
Bg6 {[%clk 00:09:51]} {[%emt 00:00:28]} 16. Rad1 {[%clk 00:12:20]} {[%emt
00:00:52]} Rfe8 {[%clk 00:07:07]} {[%emt 00:02:50]} 17. Bxg6 {[%clk 00:11:04]}
{[%emt 00:01:21]} hxg6 {[%clk 00:07:09]} {[%emt 00:00:03]} 18. Nxd4 {[%clk
00:09:18]} {[%emt 00:01:51]} Nxd4 {[%clk 00:06:26]} {[%emt 00:00:49]} 19. Qxd4
{[%clk 00:09:19]} {[%emt 00:00:03]} Qxd4+ {[%clk 00:06:29]} {[%emt 00:00:03]}
20. Rxd4 {[%clk 00:09:21]} {[%emt 00:00:02]} Re2 {[%clk 00:06:31]} {[%emt
00:00:03]} 21. Rd2 {[%clk 00:08:56]} {[%emt 00:00:29]} Rxd2 {[%clk 00:05:48]}
{[%emt 00:00:49]} 22. Bxd2 {[%clk 00:08:58]} {[%emt 00:00:04]} Rc8 {[%clk
00:05:50]} {[%emt 00:00:02]} 23. Rc1 {[%clk 00:08:53]} {[%emt 00:00:09]} b5
{[%clk 00:05:43]} {[%emt 00:00:13]} 24. Kf2 {[%clk 00:08:43]} {[%emt 00:00:14]}
Nd5 {[%clk 00:05:22]} {[%emt 00:00:27]} 25. b3 {[%clk 00:08:34]} {[%emt
00:00:14]} Nc3 {[%clk 00:04:44]} {[%emt 00:00:43]} 26. Bxc3 {[%clk 00:08:23]}
{[%emt 00:00:17]} Rxc3 {[%clk 00:04:48]} {[%emt 00:00:01]} 27. Ke2 {[%clk
00:08:26]} {[%emt 00:00:02]} a5 {[%clk 00:04:00]} {[%emt 00:00:53]} 28. Kd2
{[%clk 00:08:28]} {[%emt 00:00:02]} Rc7 {[%clk 00:03:39]} {[%emt 00:00:27]} 29.
c4 {[%clk 00:08:31]} {[%emt 00:00:02]} Rd7+ {[%clk 00:03:38]} {[%emt 00:00:05]}
30. Kc3 {[%clk 00:08:27]} {[%emt 00:00:08]} bxc4 {[%clk 00:03:32]} {[%emt
00:00:12]} 31. bxc4 {[%clk 00:08:29]} {[%emt 00:00:03]} Rb7 {[%clk 00:03:36]}
{[%emt 00:00:02]} 32. Rc2 {[%clk 00:08:19]} {[%emt 00:00:14]} Re7 {[%clk
00:03:35]} {[%emt 00:00:07]} 33. Kb3 {[%clk 00:08:16]} {[%emt 00:00:08]} Kf8
{[%clk 00:03:30]} {[%emt 00:00:10]} 34. Ka4 {[%clk 00:08:00]} {[%emt 00:00:20]}
Ke8 {[%clk 00:03:30]} {[%emt 00:00:06]} 35. Kxa5 {[%clk 00:07:55]} {[%emt
00:00:10]} Ra7+ {[%clk 00:03:34]} {[%emt 00:00:01]} 36. Kb4 {[%clk 00:07:58]}
{[%emt 00:00:02]} Rb7+ {[%clk 00:03:35]} {[%emt 00:00:04]} 37. Kc5 {[%clk
00:07:46]} {[%emt 00:00:16]} Ra7 {[%clk 00:03:38]} {[%emt 00:00:02]} 38. Ra2
{[%clk 00:07:46]} {[%emt 00:00:03]} Kd7 {[%clk 00:03:31]} {[%emt 00:00:13]} 39.
a4 {[%clk 00:07:48]} {[%emt 00:00:04]} Rc7+ {[%clk 00:02:58]} {[%emt 00:00:38]}
40. Kd5 {[%clk 00:07:50]} {[%emt 00:00:03]} Ra7 {[%clk 00:02:42]} {[%emt
00:00:21]} 41. a5 {[%clk 00:07:44]} {[%emt 00:00:11]} Ra6 {[%clk 00:02:46]}
{[%emt 00:00:01]} 42. Kc5 {[%clk 00:07:41]} {[%emt 00:00:08]} Kc7 {[%clk
00:02:49]} {[%emt 00:00:02]} 43. Kb5 {[%clk 00:07:44]} {[%emt 00:00:03]} Re6
{[%clk 00:02:37]} {[%emt 00:00:17]} 44. a6 {[%clk 00:07:30]} {[%emt 00:00:17]}
1-0

[Event "Elite Hotels Open 2024"]
[Site "Elite Stadshotellet, Kungsgatan 6, Vaxjo, Sweden"]
[Date "2024.02.09"]
[Round "2.11"]
[White "Ljung, Rickard"]
[Black "Ostlund, Joar"]
[Result "0-1"]
[TimeControl "15 minutes + 5 seconds per move from move one (Round 1 - 4) / 90 minutes + 30 seconds per move from move one (Round 5 - 8)"]
[BlackTitle "FM"]
[WhiteFideId "1740156"]
[BlackFideId "1735020"]
[WhiteElo "1963"]
[BlackElo "2327"]

1. d4 {[%clk 00:15:09]} Nf6 {[%clk 00:15:07]} {[%emt 00:00:04]} 2. Bf4 {[%clk
00:15:11]} {[%emt 00:00:03]} d5 {[%clk 00:15:09]} {[%emt 00:00:02]} 3. e3
{[%clk 00:15:15]} {[%emt 00:00:02]} e6 {[%clk 00:15:12]} {[%emt 00:00:02]} 4.
Nd2 {[%clk 00:15:14]} {[%emt 00:00:06]} Bd6 {[%clk 00:15:14]} {[%emt 00:00:03]}
5. Bg3 {[%clk 00:15:18]} {[%emt 00:00:01]} O-O {[%clk 00:15:15]} {[%emt
00:00:04]} 6. Bd3 {[%clk 00:15:15]} {[%emt 00:00:08]} c5 {[%clk 00:15:16]}
{[%emt 00:00:03]} 7. c3 {[%clk 00:15:19]} {[%emt 00:00:01]} Qc7 {[%clk
00:15:13]} {[%emt 00:00:08]} 8. Ngf3 {[%clk 00:14:54]} {[%emt 00:00:30]} Nbd7
{[%clk 00:15:14]} {[%emt 00:00:03]} 9. Bh4 {[%clk 00:13:39]} {[%emt 00:01:20]}
b6 {[%clk 00:13:14]} {[%emt 00:02:05]} 10. O-O {[%clk 00:13:23]} {[%emt
00:00:21]} Bb7 {[%clk 00:13:14]} {[%emt 00:00:05]} 11. Re1 {[%clk 00:13:19]}
{[%emt 00:00:09]} Ne4 {[%clk 00:12:48]} {[%emt 00:00:30]} 12. Qe2 {[%clk
00:12:13]} {[%emt 00:01:11]} e5 {[%clk 00:10:47]} {[%emt 00:02:06]} 13. Bxe4
{[%clk 00:10:31]} {[%emt 00:01:47]} dxe4 {[%clk 00:10:50]} {[%emt 00:00:03]} 14.
Nxe5 {[%clk 00:10:23]} {[%emt 00:00:13]} Nxe5 {[%clk 00:10:40]} {[%emt
00:00:14]} 15. dxe5 {[%clk 00:10:27]} {[%emt 00:00:02]} Bxe5 {[%clk 00:10:43]}
{[%emt 00:00:01]} 16. Bg3 {[%clk 00:10:31]} {[%emt 00:00:02]} Rad8 {[%clk
00:09:05]} {[%emt 00:01:43]} 17. Rad1 {[%clk 00:10:06]} {[%emt 00:00:30]} Rd3
{[%clk 00:07:43]} {[%emt 00:01:26]} 18. Nb3 {[%clk 00:09:27]} {[%emt 00:00:45]}
Bxg3 {[%clk 00:07:09]} {[%emt 00:00:39]} 19. hxg3 {[%clk 00:09:31]} {[%emt
00:00:01]} Rfd8 {[%clk 00:07:02]} {[%emt 00:00:12]} 20. Nc1 {[%clk 00:09:29]}
{[%emt 00:00:07]} R3d6 {[%clk 00:06:43]} {[%emt 00:00:23]} 21. Rxd6 {[%clk
00:06:50]} {[%emt 00:02:44]} Qxd6 {[%clk 00:06:41]} {[%emt 00:00:07]} 22. Nb3
{[%clk 00:06:47]} {[%emt 00:00:08]} a5 {[%clk 00:05:07]} {[%emt 00:01:39]} 23.
Qb5 {[%clk 00:05:49]} {[%emt 00:01:03]} Qc6 {[%clk 00:05:08]} {[%emt 00:00:05]}
24. Qe2 {[%clk 00:04:44]} {[%emt 00:01:10]} a4 {[%clk 00:05:01]} {[%emt
00:00:12]} 25. Rd1 {[%clk 00:04:22]} {[%emt 00:00:27]} Rd6 {[%clk 00:02:46]}
{[%emt 00:02:20]} 26. Rxd6 {[%clk 00:03:50]} {[%emt 00:00:37]} Qxd6 {[%clk
00:02:49]} {[%emt 00:00:02]} 27. Qd2 {[%clk 00:03:54]} {[%emt 00:00:02]} Qe7
{[%clk 00:00:17]} {[%emt 00:02:44]} 28. Nc1 {[%clk 00:03:56]} {[%emt 00:00:06]}
g6 {[%clk 00:00:16]} {[%emt 00:00:06]} 29. a3 {[%clk 00:03:56]} {[%emt
00:00:05]} Bc6 {[%clk 00:00:14]} {[%emt 00:00:07]} 30. Ne2 {[%clk 00:03:56]}
{[%emt 00:00:05]} Kf8 {[%clk 00:00:07]} {[%emt 00:00:12]} 31. Nf4 {[%clk
00:03:55]} {[%emt 00:00:06]} Ke8 {[%clk 00:00:09]} {[%emt 00:00:03]} 32. Kf1
{[%clk 00:02:56]} {[%emt 00:01:04]} Qd7 {[%clk 00:00:10]} {[%emt 00:00:04]} 33.
Ke1 {[%clk 00:02:30]} {[%emt 00:00:31]} Bb5 {[%clk 00:00:08]} {[%emt 00:00:07]}
34. Qd5 {[%clk 00:02:24]} {[%emt 00:00:11]} Bc6 {[%clk 00:00:07]} {[%emt
00:00:06]} 35. Qe5+ {[%clk 00:02:24]} {[%emt 00:00:06]} Qe7 {[%clk 00:00:06]}
{[%emt 00:00:06]} 36. Qb8+ {[%clk 00:02:23]} {[%emt 00:00:06]} Qd8 {[%clk
00:00:09]} {[%emt 00:00:02]} 37. Qe5+ {[%clk 00:02:25]} {[%emt 00:00:02]} Kd7
{[%clk 00:00:10]} {[%emt 00:00:04]} 38. Nd5 {[%clk 00:02:17]} {[%emt 00:00:14]}
f5 {[%clk 00:00:06]} {[%emt 00:00:09]} 39. Nf6+ {[%clk 00:01:15]} {[%emt
00:01:06]} Kc8 {[%clk 00:00:10]} {[%emt 00:00:01]} 40. Qe6+ {[%clk 00:01:13]}
{[%emt 00:00:07]} Kb7 {[%clk 00:00:11]} {[%emt 00:00:03]} 41. Qf7+ {[%clk
00:01:09]} {[%emt 00:00:09]} Ka8 {[%clk 00:00:09]} {[%emt 00:00:08]} 42. Qe6
{[%clk 00:00:46]} {[%emt 00:00:28]} Kb7 {[%clk 00:00:09]} {[%emt 00:00:06]} 43.
Qf7+ {[%clk 00:00:50]} {[%emt 00:00:01]} Ka8 {[%clk 00:00:08]} {[%emt
00:00:06]} 44. Qe6 {[%clk 00:00:54]} Bb5 {[%clk 00:00:09]} {[%emt 00:00:04]} 45.
Qd5+ {[%clk 00:00:51]} {[%emt 00:00:08]} Qxd5 {[%clk 00:00:11]} {[%emt
00:00:03]} 46. Nxd5 {[%clk 00:00:56]} Kb7 {[%clk 00:00:12]} {[%emt 00:00:04]}
47. Nf6 {[%clk 00:01:00]} h5 {[%clk 00:00:13]} {[%emt 00:00:04]} 48. Nd5 {[%clk
00:00:47]} {[%emt 00:00:18]} Bc4 {[%clk 00:00:08]} {[%emt 00:00:10]} 49. Nf4
{[%clk 00:00:47]} {[%emt 00:00:05]} Bf7 {[%clk 00:00:11]} {[%emt 00:00:02]} 50.
f3 {[%clk 00:00:48]} {[%emt 00:00:04]} g5 {[%clk 00:00:08]} {[%emt 00:00:08]}
51. Nh3 {[%clk 00:00:47]} {[%emt 00:00:05]} g4 {[%clk 00:00:10]} {[%emt
00:00:04]} 52. fxg4 {[%clk 00:00:48]} {[%emt 00:00:05]} hxg4 {[%clk 00:00:12]}
{[%emt 00:00:04]} 53. Nf4 {[%clk 00:00:46]} {[%emt 00:00:06]} Kc6 {[%clk
00:00:14]} {[%emt 00:00:03]} 54. Kd2 {[%clk 00:00:47]} {[%emt 00:00:04]} Kb5
{[%clk 00:00:16]} {[%emt 00:00:03]} 55. Ne2 {[%clk 00:00:39]} {[%emt 00:00:13]}
Bc4 {[%clk 00:00:15]} {[%emt 00:00:06]} 56. Nc1 {[%clk 00:00:41]} {[%emt
00:00:03]} Bf1 {[%clk 00:00:18]} {[%emt 00:00:02]} 57. Ke1 {[%clk 00:00:42]}
{[%emt 00:00:02]} Bxg2 {[%clk 00:00:21]} {[%emt 00:00:03]} 58. Kf2 {[%clk
00:00:46]} {[%emt 00:00:02]} Bf3 {[%clk 00:00:24]} {[%emt 00:00:03]} 59. Ke1
{[%clk 00:00:49]} {[%emt 00:00:01]} Kc4 {[%clk 00:00:27]} {[%emt 00:00:02]} 60.
Kf2 {[%clk 00:00:52]} {[%emt 00:00:02]} Bd1 {[%clk 00:00:28]} {[%emt 00:00:05]}
61. Ke1 {[%clk 00:00:55]} {[%emt 00:00:02]} Bc2 {[%clk 00:00:28]} {[%emt
00:00:05]} 62. Kd2 {[%clk 00:00:58]} {[%emt 00:00:02]} Bd3 {[%clk 00:00:29]}
{[%emt 00:00:03]} 63. Ke1 {[%clk 00:00:57]} {[%emt 00:00:06]} Kb5 {[%clk
00:00:15]} {[%emt 00:00:19]} 64. Kd2 {[%clk 00:01:01]} {[%emt 00:00:02]} Bc4
{[%clk 00:00:19]} {[%emt 00:00:01]} 65. Ke1 {[%clk 00:01:04]} {[%emt 00:00:01]}
Ka5 {[%clk 00:00:23]} {[%emt 00:00:02]} 66. Kd2 {[%clk 00:01:08]} {[%emt
00:00:02]} b5 {[%clk 00:00:26]} {[%emt 00:00:01]} 67. Ke1 {[%clk 00:01:08]}
{[%emt 00:00:05]} b4 {[%clk 00:00:25]} {[%emt 00:00:06]} 68. cxb4+ {[%clk
00:01:08]} {[%emt 00:00:05]} cxb4 {[%clk 00:00:29]} {[%emt 00:00:01]} 69. Kd2
{[%clk 00:01:01]} {[%emt 00:00:12]} Kb5 {[%clk 00:00:33]} {[%emt 00:00:01]} 70.
axb4 {[%clk 00:00:57]} {[%emt 00:00:09]} Kxb4 {[%clk 00:00:36]} {[%emt
00:00:02]} 71. Ke1 {[%clk 00:01:01]} {[%emt 00:00:01]} a3 {[%clk 00:00:31]}
{[%emt 00:00:10]} 72. bxa3+ {[%clk 00:01:03]} {[%emt 00:00:03]} Kxa3 {[%clk
00:00:35]} {[%emt 00:00:02]} 73. Kd2 {[%clk 00:01:04]} {[%emt 00:00:04]} Kb2
{[%clk 00:00:38]} {[%emt 00:00:01]} 74. Kd1 {[%clk 00:00:07]} {[%emt 00:01:02]}
Kc3 {[%clk 00:00:41]} {[%emt 00:00:02]} 75. Ne2+ {[%clk 00:00:06]} {[%emt
00:00:06]} Bxe2+ {[%clk 00:00:43]} {[%emt 00:00:03]} 76. Kxe2 {[%clk 00:00:11]}
{[%emt 00:00:01]} Kc2 {[%clk 00:00:46]} {[%emt 00:00:01]} 77. Kf1 {[%clk
00:00:07]} {[%emt 00:00:09]} Kd3 {[%clk 00:00:49]} {[%emt 00:00:02]} 78. Kf2
{[%clk 00:00:10]} {[%emt 00:00:02]} Kd2 {[%clk 00:00:52]} {[%emt 00:00:01]} 0-1